bitfinex/quotes_SOLUSD_20251006
["timestamp","ask_amount","ask_price","bid_price","bid_amount"]
[1759746505261,0.1,232.99,232.96,51.51]
[1759746505461,1.17283273,232.99,232.96,51.51]
[1759746508771,1.17283273,232.99,232.97,0.71]
[1759746509274,0.1,232.99,232.97,0.71]
[1759746509478,1.17283254,232.99,232.97,0.71]
[1759746510057,1.17283254,232.99,232.93,10.7326024]
[1759746510058,0.68,232.98,232.93,20.8]
[1759746510261,0.68,232.97,232.9,0.71]
[1759746510561,0.68,232.97,232.91,50.8]
[1759746510757,0.68,232.97,232.92,0.71]
[1759746510963,15.12212108,232.99,232.92,0.71]
[1759746510964,0.68,232.98,232.92,0.71]
[1759746512079,4.29239816,232.97,232.92,0.71]
[1759746512276,0.1,232.99,232.95,20.8]
[1759746512575,0.1,232.99,232.96,30.71]
[1759746512956,0.1,232.99,232.97,0.71]
[1759746516784,0.1,232.99,232.96,30.0]
[1759746516956,4.39203994,232.99,232.95,20.8]
[1759746517160,0.69,232.98,232.96,30.0]
[1759746517390,4.39203994,232.99,232.96,30.0]
[1759746517578,5.08203994,232.99,232.96,30.0]
[1759746518085,4.39203994,232.99,232.96,30.72]
[1759746519586,0.1,232.99,232.96,30.72]
[1759746522478,0.1,232.99,232.96,0.72]
[1759746522673,0.1,232.99,232.97,30.0]
[1759746524189,4.39203899,232.99,232.97,30.0]
[1759746531890,4.39203899,232.99,232.97,30.7]
[1759746532191,4.39203899,232.99,232.97,0.7]
[1759746532408,4.39203899,232.99,232.97,29.98]
[1759746532700,4.39203899,232.99,232.95,0.7]
[1759746532888,4.39203899,232.99,232.96,30.68]
[1759746533804,0.1,232.99,232.96,30.68]
[1759746534101,5.09206172,232.99,232.96,29.98]
[1759746534279,5.09206172,232.99,232.94,25.89203899]
[1759746534482,5.09206172,232.99,232.95,30.68]
[1759746534679,5.09206172,232.99,232.95,50.78]
[1759746534887,4.39206172,232.99,232.96,0.7]
[1759746535607,5.09206172,232.99,232.96,0.7]
[1759746536907,0.1,232.99,232.96,0.7]
[1759746539784,0.1,232.99,232.96,4.99254787]
[1759746541100,0.1,232.99,232.96,0.7]
[1759746543207,0.1,232.99,232.97,29.98]
[1759746544407,0.1,232.99,232.97,30.68]
[1759746544794,0.1,232.99,232.97,29.98]
[1759746547808,0.7,232.98,232.97,20.8]
[1759746548107,4.29239816,232.97,232.96,20.8]
[1759746548311,6.32975541,232.97,232.96,20.8]
[1759746548694,0.7,232.97,232.96,20.8]
[1759746550307,4.99239816,232.97,232.96,20.8]
[1759746552989,17.06075081,232.97,232.88,0.7]
[1759746553193,1.33735725,232.93,232.92,20.8]
[1759746553399,2.03735725,232.93,232.92,20.8]
[1759746553688,0.7,232.93,232.92,20.8]
[1759746554928,4.99313527,232.93,232.92,20.8]
[1759746556032,4.99313527,232.93,232.9,20.8]
[1759746556311,4.99313527,232.93,232.92,20.8]
[1759746559302,1.33735725,232.98,232.92,21.46]
[1759746559505,0.68,232.97,232.92,21.46]
[1759746559710,4.29221392,232.98,232.95,20.8]
[1759746559897,0.68,232.97,232.95,20.8]
[1759746560101,2.01735725,232.96,232.95,20.8]
[1759746560698,2.01735725,232.96,232.9,51.44]
[1759746561016,0.68,232.95,232.9,51.44]
[1759746561198,4.29276668,232.95,232.9,51.44]
[1759746561602,0.68,232.94,232.9,51.44]
[1759746562318,4.29300754,232.94,232.91,21.46]
[1759746562627,4.29300754,232.94,232.92,0.66]
[1759746563702,4.29276668,232.95,232.92,0.66]
[1759746565822,4.97276668,232.95,232.91,29.98]
[1759746566019,4.29276668,232.95,232.91,29.98]
[1759746566322,4.29276668,232.95,232.92,0.66]
[1759746566805,0.68,232.95,232.91,29.98]
[1759746567006,0.68,232.95,232.91,30.64]
[1759746567902,1.33735725,232.92,232.86,0.66]
[1759746568227,0.68,232.91,232.86,29.98]
[1759746568407,0.68,232.9,232.86,29.98]
[1759746568724,0.68,232.89,232.86,29.98]
[1759746568932,4.97372242,232.9,232.86,29.98]
[1759746569113,4.97372242,232.9,232.86,30.64]
[1759746570643,4.97372242,232.9,232.86,51.44]
[1759746571508,10.73275745,232.94,232.87,0.66]
[1759746571509,0.68,232.94,232.87,0.66]
[1759746571712,4.29313527,232.93,232.87,0.66]
[1759746571925,0.68,232.92,232.87,0.66]
[1759746572227,4.29313527,232.93,232.87,21.46]
[1759746572440,0.68,232.91,232.88,29.98]
[1759746572832,0.68,232.9,232.88,29.98]
[1759746573221,2.01735725,232.89,232.79,0.66]
[1759746573423,1.33735725,232.86,232.8,29.98]
[1759746573625,4.29461026,232.85,232.8,51.44]
[1759746573834,4.29461026,232.85,232.81,0.66]
[1759746574337,4.95461026,232.85,232.81,0.66]
[1759746575235,0.66,232.84,232.8,50.78]
[1759746575537,1.99735725,232.83,232.79,29.98]
[1759746575838,1.33735725,232.81,232.77,29.98]
[1759746576034,0.66,232.81,232.77,29.98]
[1759746576224,0.66,232.81,232.77,30.64]
[1759746577121,4.29553264,232.8,232.77,30.64]
[1759746579450,4.29529718,232.82,232.78,0.66]
[1759746579650,4.29529718,232.82,232.79,0.66]
[1759746579961,4.95529718,232.82,232.77,29.98]
[1759746580126,4.95529718,232.82,232.77,30.64]
[1759746580748,0.66,232.81,232.77,29.98]
[1759746581126,4.29553264,232.8,232.77,29.98]
[1759746581341,4.29553264,232.8,232.77,30.64]
[1759746581650,4.29553264,232.8,232.77,0.66]
[1759746583335,0.66,232.81,232.77,0.66]
[1759746584343,4.9553534,232.81,232.77,0.66]
[1759746586033,4.9553534,232.81,232.76,29.98]
[1759746586034,0.66,232.8,232.76,29.98]
[1759746586231,0.66,232.8,232.76,30.64]
[1759746586449,4.2953534,232.81,232.76,29.98]
[1759746586450,0.66,232.79,232.76,29.98]
[1759746587557,4.95588441,232.79,232.76,29.98]
[1759746587746,4.82915441,232.79,232.76,29.98]
[1759746588851,4.82915441,232.79,232.75,20.8]
[1759746588852,5.63324166,232.79,232.75,20.8]
[1759746589037,4.29588441,232.79,232.75,50.78]
[1759746589536,4.29553264,232.8,232.75,51.45]
[1759746589740,5.00553264,232.8,232.75,51.45]
[1759746590853,0.71,232.79,232.75,51.45]
[1759746591052,4.29553264,232.8,232.75,50.78]
[1759746591257,5.00553264,232.8,232.76,0.67]
[1759746591647,5.00553264,232.8,232.75,50.78]
[1759746591961,4.29553264,232.8,232.77,0.67]
[1759746593357,79.1,232.84,232.75,50.78]
[1759746593658,0.71,232.86,232.79,20.8]
[1759746593861,0.71,232.86,232.8,30.65]
[1759746594462,5.00387264,232.89,232.81,0.67]
[1759746594656,1.07351251,232.88,232.81,0.67]
[1759746594846,1.78351251,232.88,232.81,0.67]
[1759746595049,4.29424142,232.87,232.81,4.96526366]
[1759746595244,4.29424142,232.87,232.82,0.67]
[1759746595458,5.00424142,232.87,232.83,30.65]
[1759746595767,4.29424142,232.87,232.84,0.67]
[1759746596276,4.29405702,232.88,232.84,0.67]
[1759746597345,0.71,232.88,232.84,0.67]
[1759746597650,0.71,232.88,232.83,0.67]
[1759746597843,0.71,232.88,232.83,30.65]
[1759746598456,0.71,232.87,232.83,30.65]
[1759746599160,5.00435783,232.87,232.83,30.65]
[1759746600464,4.29405702,232.88,232.84,0.67]
[1759746600658,4.29405702,232.88,232.85,0.67]
[1759746600859,0.71,232.9,232.86,0.67]
[1759746601060,80.43735725,232.91,232.86,0.67]
[1759746601061,79.1,232.91,232.86,30.65]
[1759746601361,83.39350741,232.91,232.87,0.67]
[1759746601561,84.10350741,232.91,232.87,0.67]
[1759746601762,83.39350741,232.91,232.87,0.67]
[1759746602064,0.71,232.9,232.86,29.98]
[1759746602252,0.71,232.9,232.86,30.65]
[1759746602654,79.1,232.91,232.87,0.67]
[1759746602852,5.00329646,232.93,232.88,0.67]
[1759746603066,4.29329646,232.93,232.88,0.67]
[1759746603258,0.71,232.92,232.88,0.67]
[1759746603767,5.00338299,232.92,232.88,0.67]
[1759746604150,4.29315104,232.93,232.89,0.67]
[1759746604343,5.00315104,232.93,232.89,0.67]
[1759746604751,0.71,232.92,232.87,4.96420726]
[1759746604950,0.71,232.92,232.88,0.67]
[1759746605164,5.00338965,232.92,232.88,0.67]
[1759746606443,4.29338965,232.92,232.86,29.98]
[1759746606656,2.8011022,232.91,232.86,30.65]
[1759746606848,0.71,232.91,232.87,0.67]
[1759746607251,2.0911022,232.93,232.89,20.8]
[1759746607479,0.71,232.92,232.89,20.8]
[1759746609346,5.00339395,232.92,232.89,20.8]
[1759746610559,5.00339395,232.92,232.88,29.96]
[1759746610768,0.71,232.91,232.88,29.96]
[1759746611745,0.71,232.91,232.82,10.73762817]
[1759746611746,17.11779513,232.92,232.83,4.29480623]
[1759746612059,2.0911022,232.87,232.83,29.96]
[1759746612254,2.8011022,232.87,232.83,50.76]
[1759746612651,0.71,232.86,232.83,50.76]
[1759746612866,2.8011022,232.85,232.8,0.67]
[1759746613064,0.71,232.84,232.8,29.96]
[1759746613255,0.71,232.84,232.8,30.63]
[1759746613654,7.09567052,232.86,232.81,0.67]
[1759746613870,0.71,232.88,232.82,0.67]
[1759746614053,1.07349526,232.87,232.83,20.8]
[1759746614364,1.07349526,232.87,232.84,0.67]
[1759746616155,1.78349526,232.87,232.83,20.8]
[1759746616369,0.71,232.87,232.83,21.47]
[1759746616674,5.00426219,232.87,232.83,21.47]
[1759746617277,1.07348047,232.86,232.83,21.47]
[1759746618068,5.36795369,232.86,232.83,20.8]
[1759746618271,3.82461522,232.85,232.8,30.64]
[1759746618573,0.66,232.84,232.8,30.64]
[1759746618779,2.7511022,232.83,232.79,29.96]
[1759746618964,2.7511022,232.83,232.79,30.64]
[1759746619161,0.66,232.82,232.79,29.96]
[1759746619756,4.95522206,232.82,232.79,29.96]
[1759746621174,4.95522206,232.82,232.77,0.68]
[1759746621378,4.95522206,232.82,232.78,30.64]
[1759746621781,4.95522206,232.82,232.78,0.68]
[1759746621968,4.95522206,232.82,232.78,30.64]
[1759746622979,0.66,232.81,232.78,29.96]
[1759746623161,4.29522206,232.82,232.78,30.64]
[1759746623365,4.95522206,232.82,232.78,30.64]
[1759746624775,4.2,232.83,232.78,29.96]
[1759746624989,10.73461082,232.9,232.81,20.8]
[1759746625180,10.73461082,232.9,232.82,30.64]
[1759746625181,1.07338023,232.89,232.82,30.64]
[1759746625387,1.73338023,232.89,232.83,0.68]
[1759746625683,1.07338023,232.88,232.83,0.68]
[1759746625876,1.07338023,232.88,232.84,0.68]
[1759746626061,4.95424142,232.87,232.82,29.96]
[1759746626255,2.7511022,232.86,232.82,29.96]
[1759746626463,3.82458094,232.85,232.8,29.96]
[1759746626666,2.7511022,232.85,232.8,29.96]
[1759746626868,1.7335426,232.84,232.8,30.64]
[1759746627068,0.66,232.84,232.8,30.64]
[1759746627481,4.29497916,232.83,232.8,30.64]
[1759746627872,0.66,232.84,232.8,30.64]
[1759746628181,15.02814043,232.9,232.83,20.8]
[1759746628382,1.07345501,232.89,232.84,0.68]
[1759746628581,1.07345501,232.88,232.85,0.68]
[1759746628791,1.07345501,232.87,232.85,0.68]
[1759746628973,0.66,232.89,232.85,0.68]
[1759746629173,5.3675593,232.88,232.85,0.68]
[1759746629374,1.07344137,232.87,232.85,0.68]
[1759746630071,1.07344137,232.87,232.83,21.48]
[1759746631689,4.29427466,232.87,232.83,21.48]
[1759746631984,0.66,232.89,232.83,21.48]
[1759746631985,4.95404545,232.89,232.83,20.8]
[1759746632186,1.07335948,232.88,232.83,21.48]
[1759746633296,1.07335948,232.88,232.83,25.77496925]
[1759746633487,1.07335948,232.88,232.84,0.68]
[1759746634694,1.73335948,232.88,232.84,0.68]
[1759746634873,0.66,232.88,232.84,0.68]
[1759746637291,1.07335209,232.87,232.84,0.68]
[1759746638792,1.07335209,232.87,232.84,4.9747437]
[1759746638979,81.1911022,232.91,232.85,0.66]
[1759746638980,83.3936797,232.91,232.85,0.66]
[1759746639182,1.07334359,232.9,232.85,0.66]
[1759746639383,1.07334359,232.89,232.85,0.66]
[1759746639585,1.07334359,232.88,232.85,0.66]
[1759746639804,83.3936797,232.91,232.86,0.66]
[1759746640085,1.07334456,232.9,232.86,0.66]
[1759746640281,1.07334456,232.89,232.86,0.66]
[1759746640484,1.07334456,232.88,232.86,0.66]
[1759746640673,0.66,232.9,232.86,0.66]
[1759746640880,3.82439155,232.89,232.84,20.8]
[1759746641078,3.82439155,232.88,232.85,29.96]
[1759746641399,1.73328935,232.87,232.85,29.96]
[1759746641584,0.66,232.87,232.85,29.96]
[1759746642117,4.29436634,232.87,232.85,29.96]
[1759746642319,4.95436634,232.87,232.85,29.96]
[1759746642797,4.95436634,232.87,232.84,20.8]
[1759746645301,1.07338744,232.86,232.85,20.8]
[1759746645593,4.95436634,232.87,232.85,20.8]
[1759746645795,3.82449652,232.86,232.77,0.66]
[1759746645996,2.0911022,232.81,232.72,11.49253492]
[1759746646300,1.07339432,232.85,232.72,11.49253492]
[1759746646301,3.82479056,232.8,232.73,30.62]
[1759746646474,2.0911022,232.78,232.73,30.62]
[1759746646670,0.66,232.77,232.73,29.96]
[1759746647089,0.66,232.77,232.73,50.76]
[1759746647290,0.66,232.76,232.75,20.8]
[1759746647688,0.66,232.76,232.73,29.96]
[1759746647689,4.95628778,232.76,232.73,29.96]
[1759746647889,4.95628778,232.76,232.75,20.8]
[1759746648082,4.29628778,232.76,232.75,20.8]
[1759746648688,4.29608686,232.77,232.73,29.96]
[1759746648895,5.01608686,232.77,232.75,20.8]
[1759746649900,4.29608686,232.77,232.75,20.8]
[1759746650503,5.01608686,232.77,232.75,20.8]
[1759746651091,0.72,232.79,232.75,20.8]
[1759746651294,2.0911022,232.78,232.75,20.8]
[1759746651607,2.8111022,232.78,232.75,20.8]
[1759746651806,2.0911022,232.78,232.75,20.8]
[1759746651995,2.8111022,232.78,232.75,20.8]
[1759746653302,4.29608626,232.77,232.75,20.8]
[1759746654902,4.29608626,232.77,232.73,0.72]
[1759746655107,4.29608626,232.77,232.73,29.96]
[1759746655420,4.29608626,232.77,232.74,0.72]
[1759746657210,5.01608626,232.77,232.73,29.96]
[1759746657412,5.01608626,232.77,232.73,30.68]
[1759746657590,4.29608626,232.77,232.73,30.68]
[1759746658002,4.29608626,232.77,232.74,0.72]
[1759746659387,5.01608626,232.77,232.73,29.96]
[1759746659588,4.29608626,232.77,232.73,29.96]
[1759746659788,4.29608626,232.77,232.74,0.72]
[1759746660020,4.29608626,232.77,232.73,29.96]
[1759746660021,5.01608626,232.77,232.73,29.96]
[1759746660197,5.01608626,232.77,232.73,30.68]
[1759746661512,2.8111022,232.76,232.72,29.96]
[1759746661704,15.03630192,232.77,232.69,0.2]
[1759746661705,2.0911022,232.74,232.69,0.2]
[1759746662008,2.8111022,232.73,232.69,0.2]
[1759746662385,2.8111022,232.75,232.69,0.92]
[1759746662593,0.72,232.74,232.69,0.92]
[1759746662791,0.72,232.73,232.69,0.92]
[1759746662990,0.72,232.73,232.69,0.2]
[1759746663207,0.72,232.72,232.69,0.2]
[1759746663709,4.29682464,232.73,232.69,0.92]
[1759746663890,5.01682464,232.73,232.69,0.92]
[1759746664289,4.29682464,232.73,232.69,0.2]
[1759746664514,0.72,232.72,232.69,0.2]
[1759746665499,5.01701601,232.72,232.69,0.2]
[1759746666599,0.72,232.71,232.69,0.2]
[1759746667094,5.63763764,232.72,232.69,0.2]
[1759746667095,0.72,232.7,232.69,0.2]
[1759746668408,6.35800022,232.7,232.69,0.2]
[1759746670714,11.72048674,232.7,232.69,1e-08]
[1759746671693,36.31800022,232.7,232.69,1e-08]
[1759746672201,6.35800022,232.7,232.69,1e-08]
[1759746673815,5.01737859,232.7,232.69,1e-08]
[1759746674015,6.35800022,232.7,232.69,1e-08]
[1759746679420,4.29737859,232.7,232.69,0.68000001]
[1759746679600,4.29737859,232.7,232.69,1e-08]
[1759746680013,5.63799947,232.71,232.69,1e-08]
[1759746680513,4.29737784,232.71,232.69,1e-08]
[1759746680719,4.29737784,232.71,232.69,0.68000001]
[1759746681231,1.34062163,232.74,232.7,0.68]
[1759746681532,4.29664002,232.74,232.7,0.68]
[1759746681824,4.29664002,232.74,232.69,1e-08]
[1759746682004,4.29664002,232.74,232.7,0.68]
[1759746682206,4.29664002,232.74,232.71,0.68]
[1759746682421,29.96,232.76,232.72,0.68]
[1759746682730,0.67,232.79,232.73,0.68]
[1759746682903,2.01062163,232.79,232.73,0.68]
[1759746683232,4.29590855,232.78,232.73,0.68]
[1759746683531,1.34062163,232.83,232.74,25.09664002]
[1759746683697,1.34062163,232.8,232.74,21.48]
[1759746683900,2.01062163,232.8,232.74,21.48]
[1759746684225,2.01062163,232.8,232.74,0.68]
[1759746685529,4.29571716,232.79,232.74,0.68]
[1759746685707,4.29571716,232.79,232.75,0.68]
[1759746687012,2.01062163,232.78,232.73,20.8]
[1759746687331,2.01062163,232.77,232.72,0.68]
[1759746687502,6.30688029,232.77,232.72,0.68]
[1759746687699,6.30688029,232.77,232.73,0.68]
[1759746688204,5.63688029,232.77,232.73,0.68]
[1759746689333,4.29625866,232.77,232.73,0.68]
[1759746689634,6.3064954,232.79,232.74,0.68]
[1759746690719,4.96587377,232.79,232.75,0.68]
[1759746692132,4.96587377,232.79,232.73,0.68]
[1759746692429,4.96587377,232.79,232.73,4.97672299]
[1759746693808,6.3064954,232.79,232.73,0.68]
[1759746694547,4.29587377,232.79,232.73,0.68]
[1759746694916,83.39554101,232.8,232.73,4.97680393]
[1759746695119,83.39554101,232.8,232.74,0.71]
[1759746695541,85.41616264,232.8,232.72,0.71]
[1759746695714,0.68,232.79,232.72,0.71]
[1759746697018,4.2959017,232.78,232.72,5.0069039]
[1759746697323,4.2959017,232.78,232.73,0.71]
[1759746697525,4.9759017,232.78,232.74,0.71]
[1759746698031,80.44062163,232.8,232.72,4.2969039]
[1759746698238,0.68,232.79,232.74,0.71]
[1759746698621,0.68,232.78,232.74,0.71]
[1759746700054,4.97596904,232.78,232.74,0.71]
[1759746701241,1.34062163,232.8,232.72,4.29700928]
[1759746701242,5.63620841,232.8,232.72,4.29700928]
[1759746701416,0.68,232.79,232.73,0.71]
[1759746703438,4.2959017,232.78,232.71,34.96716863]
[1759746703639,0.68,232.77,232.71,34.96716863]
[1759746704530,0.68,232.77,232.72,5.00689328]
[1759746704738,2.02062163,232.79,232.73,0.71]
[1759746704938,0.68,232.79,232.73,0.71]
[1759746708760,0.68,232.79,232.74,4.29664002]
[1759746708962,0.71,232.78,232.74,5.01664002]
[1759746709138,4.29562196,232.8,232.74,4.29664002]
[1759746709460,4.2,232.78,232.74,5.01664002]
[1759746709761,4.91,232.78,232.74,5.01664002]
[1759746710258,4.91,232.78,232.74,0.72]
[1759746710958,9.20592157,232.78,232.74,0.72]
[1759746711559,0.71,232.77,232.73,4.29681827]
[1759746711857,0.71,232.77,232.74,0.72]
[1759746712454,0.71,232.77,232.71,34.25701931]
[1759746712757,0.71,232.77,232.73,0.72]
[1759746712953,5.00592157,232.78,232.74,0.72]
[1759746713333,0.71,232.77,232.71,34.25701931]
[1759746713562,0.71,232.77,232.72,0.72]
[1759746713862,0.71,232.77,232.73,0.72]
[1759746714170,5.00612875,232.77,232.73,0.72]
[1759746714538,4.29612875,232.77,232.73,0.72]
[1759746715155,5.00612875,232.77,232.73,0.72]
[1759746715760,0.71,232.77,232.73,0.72]
[1759746715958,0.71,232.76,232.72,34.23699282]
[1759746716261,0.71,232.76,232.72,34.95699282]
[1759746716950,4.29614224,232.77,232.73,0.72]
[1759746717143,5.00614224,232.77,232.73,0.72]
[1759746717660,0.71,232.76,232.73,0.72]
[1759746718156,4.29585696,232.79,232.73,0.72]
[1759746718361,5.00585696,232.79,232.73,0.72]
[1759746719954,8.49601798,232.78,232.73,0.72]
[1759746720151,0.71,232.77,232.73,5.01680194]
[1759746720360,4.2,232.78,232.74,0.72]
[1759746720572,4.2,232.78,232.76,20.8]
[1759746720750,5.00442583,232.86,232.77,30.66]
[1759746721055,5.00442583,232.86,232.78,0.72]
[1759746722254,5.00442583,232.86,232.78,5.01573512]
[1759746722576,0.71,232.85,232.77,29.94]
[1759746722781,1.34062163,232.84,232.77,29.94]
[1759746723059,0.71,232.83,232.77,29.94]
[1759746723238,0.71,232.82,232.77,29.94]
[1759746723439,0.71,232.82,232.78,0.72]
[1759746724342,4.29517877,232.82,232.77,29.94]
[1759746724543,0.71,232.81,232.77,30.66]
[1759746724944,4.29517877,232.82,232.77,29.94]
[1759746725242,4.29517877,232.82,232.77,34.23607526]
[1759746725440,4.29517877,232.82,232.78,0.72]
[1759746725654,5.00517877,232.82,232.78,0.72]
[1759746725847,2.09281542,232.79,232.69,1e-08]
[1759746726035,2.09281542,232.75,232.69,1e-08]
[1759746726242,2.09281542,232.73,232.69,1e-08]
[1759746726570,2.09281542,232.7,232.69,1e-08]
[1759746727063,2.80281542,232.7,232.69,1e-08]
[1759746728240,7.10019401,232.7,232.69,1e-08]
[1759746728954,5.00737859,232.7,232.69,1e-08]
[1759746729154,7.10019401,232.7,232.69,1e-08]
[1759746729355,5.00737859,232.7,232.69,1e-08]
[1759746729671,7.10019401,232.7,232.69,1e-08]
[1759746731965,9.19300943,232.7,232.69,1e-08]
[1759746732166,9.19300943,232.7,232.66,0.2]
[1759746732167,25.09793269,232.67,232.66,0.2]
[1759746732464,27.19074811,232.67,232.66,0.2]
[1759746732667,27.90074811,232.67,232.66,0.2]
[1759746732976,25.80793269,232.67,232.66,0.2]
[1759746733186,27.90074811,232.67,232.66,0.2]
[1759746733678,6.39074811,232.67,232.66,0.2]
[1759746733845,4.29793269,232.67,232.66,0.2]
[1759746735158,7.10074811,232.67,232.66,0.2]
[1759746738154,6.39074811,232.67,232.66,0.2]
[1759746739450,7.06074811,232.67,232.66,0.2]
[1759746749268,4.29793269,232.67,232.66,0.2]
[1759746749573,4.29718007,232.72,232.66,0.92]
[1759746749757,6.38999549,232.72,232.67,0.72]
[1759746750097,2.09281542,232.71,232.67,0.72]
[1759746750375,2.09281542,232.7,232.66,0.2]
[1759746750562,2.09281542,232.7,232.66,0.92]
[1759746750766,2.76281542,232.7,232.66,0.92]
[1759746750969,2.09281542,232.7,232.66,0.92]
[1759746751374,6.39037631,232.7,232.66,0.2]
[1759746751573,6.39037631,232.7,232.67,0.72]
[1759746751772,6.38998685,232.72,232.68,0.72]
[1759746752375,2.09281542,232.69,232.66,0.2]
[1759746752560,2.09281542,232.68,232.66,0.2]
[1759746753176,2.09281542,232.69,232.66,0.2]
[1759746753379,6.39053711,232.69,232.66,0.2]
[1759746753881,2.09281542,232.67,232.66,0.2]
[1759746754269,2.77281542,232.67,232.66,0.2]
[1759746755576,6.39074811,232.67,232.66,0.2]
[1759746756463,2.09281542,232.7,232.66,0.2]
[1759746756768,2.77281542,232.7,232.66,0.2]
[1759746756978,2.09281542,232.69,232.66,0.2]
[1759746757988,4.29774798,232.68,232.66,0.2]
[1759746758197,2.09281542,232.67,232.66,0.2]
[1759746758692,2.77281542,232.67,232.66,0.2]
[1759746759388,7.07074811,232.67,232.66,0.2]
[1759746761372,27.19074811,232.67,232.66,0.2]
[1759746761572,27.87074811,232.67,232.66,0.2]
[1759746761773,7.07074811,232.67,232.66,0.2]
[1759746762682,6.39074811,232.67,232.66,0.2]
[1759746762877,7.07074811,232.67,232.66,0.2]
[1759746763290,6.39074811,232.67,232.66,0.2]
[1759746763692,7.07074811,232.67,232.66,0.2]
[1759746763900,4.29793269,232.67,232.66,0.2]
[1759746764084,22.52068913,232.72,232.66,0.2]
[1759746764085,4.29777708,232.68,232.66,0.2]
[1759746764285,2.09281542,232.7,232.66,0.88]
[1759746764482,2.09281542,232.69,232.66,0.88]
[1759746764790,2.09281542,232.69,232.66,0.2]
[1759746764791,4.29774798,232.68,232.66,0.2]
[1759746765180,6.39035547,232.7,232.67,0.68]
[1759746766379,0.68,232.69,232.66,0.2]
[1759746766576,2.09281542,232.69,232.66,0.2]
[1759746766788,4.29757577,232.69,232.66,0.88]
[1759746768185,2.09281542,232.7,232.67,0.68]
[1759746768186,6.39021114,232.7,232.67,0.68]
[1759746769177,6.39021114,232.7,232.66,0.2]
[1759746769377,6.39021114,232.7,232.66,0.88]
[1759746770683,10.74263715,232.72,232.67,0.68]
[1759746770878,79.1,232.72,232.67,0.68]
[1759746771080,29.96,232.78,232.67,0.68]
[1759746771081,2.09281542,232.77,232.67,0.68]
[1759746772303,4.29632175,232.76,232.68,4.29774798]
[1759746772480,4.29632175,232.76,232.69,0.68]
[1759746772801,6.38913717,232.76,232.69,0.68]
[1759746773197,6.38913717,232.76,232.7,4.29737859]
[1759746773386,6.38913717,232.76,232.71,0.68]
[1759746773584,6.38913717,232.76,232.72,0.68]
[1759746774611,4.29608626,232.77,232.72,0.68]
[1759746774791,7.10890168,232.77,232.72,0.68]
[1759746775877,7.10890168,232.77,232.7,4.29720437]
[1759746775878,0.72,232.76,232.7,4.97720437]
[1759746776099,0.72,232.76,232.7,4.29720437]
[1759746776401,6.38890168,232.77,232.71,0.68]
[1759746777106,6.38890168,232.77,232.72,4.29700928]
[1759746777287,7.10890168,232.77,232.72,4.97700928]
[1759746777483,6.38890168,232.77,232.72,0.68]
[1759746777682,0.72,232.76,232.7,0.68]
[1759746779102,2.09281542,232.77,232.71,4.29719393]
[1759746779315,2.09281542,232.77,232.71,4.97719393]
[1759746779813,6.38891194,232.77,232.71,4.97719393]
[1759746780185,6.38891194,232.77,232.71,4.29719393]
[1759746780392,61.51811286,232.82,232.72,21.48]
[1759746780393,2.09281542,232.8,232.72,21.48]
[1759746780591,2.09281542,232.8,232.73,0.68]